[Event "Srdja Dragasevic Memorial-A 2024"]
[Site "Cetinje"]
[Date "2024.06.23"]
[Round "1.6"]
[White "Mammadov, Zaur"]
[Black "Miletic, Vuk"]
[Result "0-1"]
[ECO "E06"]
[WhiteElo "2426"]
[BlackElo "2193"]
[Annotator "RC"]
[PlyCount "170"]
[EventDate "2024.06.23"]
[EventType "swiss"]
[EventCountry "MNE"]
[SourceTitle "playchess.com"]
[Source "ChessBase"]
[SourceQuality "1"]
[TimeControl "40/5400+30:1800+30"]

1. d4 {[%emt 0:00:03]} d5 {[%emt 0:02:29]} 2. Nf3 {[%emt 0:00:10]} e6 {[%emt 0:01:10]} 3. c4 {[%emt 0:00:06]} Nf6 {[%emt 0:00:17]} 4. cxd5 {[%emt 0:00:06]} exd5 {[%emt 0:00:10]} 5. Nc3 {[%emt 0:00:06]} c6 {[%emt 0:00:58]} 6. g3 {[%emt 0:00:05]} Be7 {[%emt 0:01:17]} 7. Bg2 {[%emt 0:00:44]} O-O {[%emt 0:01:23]} 8. O-O {[%emt 0:00:22]} Re8 {[%emt 0:06:49]} 9. Qc2 {[%emt 0:02:09]} g6 {[%emt 0:07:16]} 10. Ne5 {[%emt 0:00:18]} Qb6 {[%emt 0:23:56]} 11. Be3 {[%emt 0:04:54]} Bf5 {[%emt 0:06:32]} 12. Qd2 {[%emt 0:04:23]} Nbd7 {[%emt 0:03:45]} 13. Nxd7 {[%emt 0:01:53]} Nxd7 {[%emt 0:06:11]} 14. f3 {[%emt 0:00:23]} Qd8 {[%emt 0:04:29]} 15. Bh6 {[%emt 0:02:52]} Nb6 {[%emt 0:02:06]} 16. b3 {[%emt 0:05:39]} a5 {[%emt 0:03:53]} 17. e4 {[%emt 0:01:46]} Be6 {[%emt 0:00:56]} 18. e5 {[%emt 0:04:26]} a4 {[%emt 0:00:51]} 19. Ne2 {[%emt 0:01:51]} axb3 {[%emt 0:02:59]} 20. axb3 {[%emt 0:02:55]} Nd7 {[%emt 0:07:35]} 21. Nf4 {[%emt 0:03:37]} Rxa1 {[%emt 0:02:03]} 22. Rxa1 {[%emt 0:00:03]} Qb6 {[%emt 0:01:30]} 23. Nxe6 {[%emt 0:01:08]} fxe6 {[%emt 0:00:06]} 24. Bh3 {[%emt 0:00:05]} c5 {[%emt 0:03:04]} 25. Qa5 {[%emt 0:03:48]} Bd8 {[%emt 0:04:23]} 26. Qa4 {[%emt 0:01:16]} Qc7 {[%emt 0:04:10]} 27. Qb5 {[%emt 0:00:02]} b6 {[%emt 0:02:09]} 28. dxc5 {[%emt 0:05:43]} Qxc5+ 29. Qxc5 {[%emt 0:00:02]} bxc5 {[%emt 0:01:42]} 30. Ra7 {[%emt 0:02:53]} Nxe5 {[%emt 0:00:37]} 31. Rg7+ {[%emt 0:00:01]} Kh8 {[%emt 0:00:20]} 32. f4 {[%emt 0:00:01]} Bf6 {[%emt 0:00:01]} 33. Rc7 {[%emt 0:00:19]} Nf3+ {[%emt 0:00:56]} 34. Kg2 {[%emt 0:11:41]} Nd4 {[%emt 0:00:01]} 35. g4 {[%emt 0:00:01]} Be7 {[%emt 0:00:44]} 36. g5 {[%emt 0:04:40]} Bf8 {[%emt 0:00:52]} 37. Bg4 {[%emt 0:02:32]} Be7 {[%emt 0:00:41]} 38. h4 {[%emt 0:05:42]} Kg8 {[%emt 0:00:05]} 39. h5 {[%emt 0:00:38]} Kf7 {[%emt 0:00:06]} 40. Rb7 {[%emt 0:00:00]} Nf5 {[%emt 0:00:00]} 41. Kf2 {[%emt 0:08:45]} Nd6 {[%emt 0:06:05]} 42. Ra7 {[%emt 0:03:27]} Rb8 {[%emt 0:06:00]} 43. Bd1 {[%emt 0:00:02]} Nb5 {[%emt 0:02:26]} 44. Ra6 {[%emt 0:01:23]} Nd4 {[%emt 0:00:29]} 45. Ra7 {[%emt 0:01:00]} Nb5 {[%emt 0:11:55]} 46. Ra6 {[%emt 0:00:15]} Nc7 {[%emt 0:08:03]} 47. Rc6 {[%emt 0:03:01]} Ne8 {[%emt 0:00:00]} 48. Ra6 {[%emt 0:01:33]} Bd6 {[%emt 0:00:00]} 49. Ke3 {[%emt 0:06:32]} Rb4 {[%emt 0:00:00]} 50. Ra4 {[%emt 0:00:16]} Bxf4+ {[%emt 0:00:00]} 51. Kd3 {[%emt 0:00:17]} Be5 {[%emt 0:00:09]} 52. Ra5 {[%emt 0:02:26]} Bd6 {[%emt 0:01:09]} 53. Ra8 {[%emt 0:00:33]} Rb8 {[%emt 0:00:51]} 54. Ra2 {[%emt 0:00:48]} Be7 {[%emt 0:00:46]} 55. Rf2+ {[%emt 0:02:31]} Kg8 {[%emt 0:00:06]} 56. Re2 {[%emt 0:00:05]} Nc7 {[%emt 0:00:43]} 57. Ra2 {[%emt 0:04:24]} Rb4 {[%emt 0:00:56]} 58. hxg6 {[%emt 0:01:51]} hxg6 {[%emt 0:00:05]} 59. Bc2 {[%emt 0:00:19]} e5 {[%emt 0:01:01]} 60. Bd1 {[%emt 0:01:16]} Rd4+ {[%emt 0:00:40]} 61. Kc2 {[%emt 0:00:12]} Bd6 {[%emt 0:00:25]} 62. Be2 {[%emt 0:01:23]} Kf7 {[%emt 0:00:33]} 63. Ra1 {[%emt 0:00:14]} Rf4 {[%emt 0:00:26]} 64. Kd2 {[%emt 0:01:22]} Rd4+ {[%emt 0:00:27]} 65. Kc2 {[%emt 0:00:25]} Rf4 {[%emt 0:00:06]} 66. Kd2 {[%emt 0:00:04]} e4 {[%emt 0:00:24]} 67. Ra7 {[%emt 0:00:47]} Rf2 {[%emt 0:01:07]} 68. Rb7 {[%emt 0:00:25]} Bf4+ {[%emt 0:00:22]} 69. Ke1 {[%emt 0:00:01]} Rg2 {[%emt 0:00:25]} 70. Rb8 {[%emt 0:00:17]} Bg3+ {[%emt 0:00:21]} 71. Kd1 {[%emt 0:00:20]} Rg1+ {[%emt 0:00:52]} 72. Kc2 {[%emt 0:00:01]} Ne6 {[%emt 0:00:11]} 73. Rb7+ {[%emt 0:00:31]} Bc7 {[%emt 0:00:14]} 74. Kd2 {[%emt 0:00:18]} Ke7 {[%emt 0:00:59]} 75. Bb5 {[%emt 0:00:22]} Rg2+ {[%emt 0:00:15]} 76. Ke1 {[%emt 0:00:12]} Kd8 {[%emt 0:00:54]} 77. Ra7 {[%emt 0:00:19]} e3 {[%emt 0:00:16]} 78. Kf1 {[%emt 0:03:09]} Rf2+ {[%emt 0:00:30]} 79. Ke1 {[%emt 0:00:01]} Rb2 {[%emt 0:00:44]} 80. Kd1 {[%emt 0:01:51]} Rd2+ {[%emt 0:00:26]} 81. Kc1 {[%emt 0:00:08]} Rh2 {[%emt 0:00:29]} 82. Kd1 {[%emt 0:00:52]} Rh1+ {[%emt 0:00:05]} 83. Ke2 {[%emt 0:00:07]} Nd4+ {[%emt 0:00:04]} 84. Kxe3 {[%emt 0:00:11]} Rh3+ {[%emt 0:00:12]} 85. Kf2 {[%emt 0:00:16]} Nxb5 {[%emt 0:00:29]} 0-1

[Event "Srdja Dragasevic Memorial-A 2024"]
[Site "Cetinje"]
[Date "2024.06.23"]
[Round "1.7"]
[White "Skvortsova, Alena"]
[Black "Tadic, Stefan"]
[Result "1/2-1/2"]
[ECO "C22"]
[WhiteElo "2170"]
[BlackElo "2421"]
[Annotator "RC"]
[PlyCount "75"]
[EventDate "2024.06.23"]
[EventType "swiss"]
[EventCountry "MNE"]
[SourceTitle "playchess.com"]
[Source "ChessBase"]
[SourceQuality "1"]
[TimeControl "40/5400+30:1800+30"]

1. e4 {[%emt 0:04:35]} e5 {[%emt 0:00:07]} 2. d4 {[%emt 0:00:52]} exd4 {[%emt 0:00:06]} 3. Qxd4 {[%emt 0:00:03]} Nc6 {[%emt 0:00:33]} 4. Qe3 {[%emt 0:00:12]} Nf6 {[%emt 0:01:00]} 5. Bd2 {[%emt 0:00:09]} b6 {[%emt 0:12:31]} 6. Nc3 {[%emt 0:04:26]} Bc5 {[%emt 0:00:13]} 7. Qg3 {[%emt 0:01:14]} O-O {[%emt 0:00:08]} 8. O-O-O {[%emt 0:04:59]} Re8 {[%emt 0:06:18]} 9. Bg5 {[%emt 0:08:22]} Be7 {[%emt 0:16:30]} 10. h4 {[%emt 0:06:06]} Nh5 {[%emt 0:03:39]} 11. Qh2 {[%emt 0:11:31]} Bxg5+ {[%emt 0:14:38]} 12. hxg5 {[%emt 0:00:09]} Qxg5+ {[%emt 0:00:03]} 13. Kb1 {[%emt 0:00:25]} g6 {[%emt 0:00:05]} 14. Be2 {[%emt 0:14:07]} d6 {[%emt 0:15:26]} 15. Bxh5 {[%emt 0:05:49]} gxh5 {[%emt 0:03:17]} 16. Rd5 {[%emt 0:06:25]} f5 {[%emt 0:00:05]} 17. Nf3 {[%emt 0:03:35]} Qg4 {[%emt 0:01:53]} 18. exf5 {[%emt 0:12:26]} Bxf5 {[%emt 0:00:40]} 19. Qxh5 {[%emt 0:02:15]} Qxh5 {[%emt 0:00:10]} 20. Rxh5 {[%emt 0:00:04]} Bg6 {[%emt 0:00:09]} 21. Rh1 {[%emt 0:02:54]} Rf8 {[%emt 0:09:57]} 22. Rd2 {[%emt 0:03:30]} Ne7 {[%emt 0:07:14]} 23. Ng5 {[%emt 0:01:55]} Rf5 {[%emt 0:01:08]} 24. Ne6 {[%emt 0:00:23]} Rc8 {[%emt 0:00:26]} 25. Re1 {[%emt 0:02:13]} Kf7 {[%emt 0:00:08]} 26. f4 {[%emt 0:00:26]} h5 {[%emt 0:02:42]} 27. Nd4 {[%emt 0:02:13]} Rf6 {[%emt 0:01:10]} 28. Rde2 {[%emt 0:00:10]} Nf5 {[%emt 0:00:45]} 29. Nd5 {[%emt 0:02:31]} Nxd4 {[%emt 0:00:02]} 30. Re7+ {[%emt 0:00:06]} Kf8 {[%emt 0:00:03]} 31. Nxf6 {[%emt 0:00:06]} Nxc2 {[%emt 0:01:04]} 32. Nd7+ {[%emt 0:00:11]} Kg8 {[%emt 0:00:01]} 33. Nf6+ {[%emt 0:00:07]} Kf8 {[%emt 0:00:16]} 34. Nd7+ {[%emt 0:00:21]} Kg8 {[%emt 0:00:00]} 35. Nf6+ {[%emt 0:02:23]} Kf8 {[%emt 0:00:03]} 36. Nd7+ {[%emt 0:00:15]} Kg8 {[%emt 0:06:00]} 37. R1e6 {[%emt 0:01:32]} Bf5 38. Rh6 {[%emt 0:00:30]} 1/2-1/2

[Event "Srdja Dragasevic Memorial-A 2024"]
[Site "Cetinje"]
[Date "2024.06.23"]
[Round "1.8"]
[White "Kalezic, Blazo"]
[Black "Slugin, Alexander"]
[Result "1-0"]
[ECO "B91"]
[WhiteElo "2398"]
[BlackElo "2157"]
[Annotator "ChessBase"]
[PlyCount "71"]
[EventDate "2024.06.23"]
[EventType "swiss"]
[EventCountry "MNE"]
[SourceTitle "playchess.com"]
[Source "ChessBase"]
[SourceQuality "1"]
[TimeControl "40/5400+30:1800+30"]

1. e4 {[%emt 0:00:04]} c5 {[%emt 0:00:20]} 2. Nf3 {[%emt 0:00:08]} d6 {[%emt 0:00:16]} 3. d4 {[%emt 0:00:14]} cxd4 {[%emt 0:00:05]} 4. Nxd4 {[%emt 0:00:09]} Nf6 {[%emt 0:00:11]} 5. Nc3 {[%emt 0:00:31]} a6 {[%emt 0:00:41]} 6. g3 {[%emt 0:02:22]} g6 {[%emt 0:06:05]} 7. Bg2 {[%emt 0:01:36]} Bg7 {[%emt 0:00:05]} 8. O-O {[%emt 0:00:59]} O-O {[%emt 0:00:05]} 9. h3 {[%emt 0:01:14]} Bd7 {[%emt 0:02:36]} 10. g4 {[%emt 0:01:54]} Nc6 {[%emt 0:00:17]} 11. Nb3 {[%emt 0:00:16]} b5 {[%emt 0:07:22]} 12. a3 {[%emt 0:03:44]} Rc8 {[%emt 0:10:25]} 13. f4 {[%emt 1:23:49]} Qb6+ {[%emt 0:09:59]} 14. Kh2 {[%emt 0:00:00]} Be6 {[%emt 0:01:19]} 15. Nd5 {[%emt 0:00:00]} Bxd5 {[%emt 0:04:01]} 16. exd5 {[%emt 0:00:00]} Nb8 {[%emt 0:02:05]} 17. Qd3 {[%emt 0:00:00]} Nfd7 {[%emt 0:02:54]} 18. Be3 {[%emt 0:00:00]} Nc5 {[%emt 0:00:14]} 19. Nxc5 {[%emt 0:00:00]} dxc5 {[%emt 0:00:10]} 20. c3 {[%emt 0:00:00]} Nd7 {[%emt 0:00:21]} 21. a4 {[%emt 0:00:00]} Rfd8 {[%emt 0:02:13]} 22. axb5 {[%emt 0:00:00]} axb5 {[%emt 0:00:07]} 23. g5 {[%emt 0:00:00]} Qb8 {[%emt 0:02:46]} 24. Ra5 {[%emt 0:00:00]} c4 {[%emt 0:00:14]} 25. Qe4 {[%emt 0:00:00]} Bf8 {[%emt 0:00:20]} 26. Bd4 {[%emt 0:00:00]} Re8 {[%emt 0:01:37]} 27. h4 {[%emt 0:00:00]} Bg7 {[%emt 0:05:26]} 28. Bxg7 {[%emt 0:00:00]} Kxg7 {[%emt 0:00:07]} 29. Bh3 {[%emt 0:00:00]} f5 {[%emt 0:02:18]} 30. Qd4+ {[%emt 0:00:00]} Kf7 {[%emt 0:00:15]} 31. Ra7 {[%emt 0:00:00]} Rc7 {[%emt 0:00:20]} 32. Rfa1 {[%emt 0:00:00]} Rec8 {[%emt 0:04:16]} 33. d6 {[%emt 0:00:00]} exd6 {[%emt 0:00:47]} 34. Bg2 {[%emt 0:00:00]} Nb6 {[%emt 0:12:31]} 35. Ra8 {[%emt 0:00:00]} Nxa8 {[%emt 0:01:31]} 36. Rxa8 {[%emt 0:11:30]} 1-0

[Event "Srdja Dragasevic Memorial-A 2024"]
[Site "Cetinje"]
[Date "2024.06.23"]
[Round "1.9"]
[White "Levi, Netanel"]
[Black "Yaksin, Oleg"]
[Result "1/2-1/2"]
[ECO "B67"]
[WhiteElo "2152"]
[BlackElo "2389"]
[Annotator "RC"]
[PlyCount "126"]
[EventDate "2024.06.23"]
[EventType "swiss"]
[EventCountry "MNE"]
[SourceTitle "playchess.com"]
[Source "ChessBase"]
[SourceQuality "1"]
[TimeControl "40/5400+30:1800+30"]

1. e4 {[%emt 0:00:06]} c5 {[%emt 0:00:08]} 2. Nf3 {[%emt 0:00:07]} d6 {[%emt 0:00:06]} 3. d4 {[%emt 0:00:47]} cxd4 {[%emt 0:00:04]} 4. Nxd4 {[%emt 0:00:05]} Nf6 {[%emt 0:00:02]} 5. Nc3 {[%emt 0:00:11]} Nc6 {[%emt 0:00:14]} 6. Bg5 {[%emt 0:00:49]} e6 {[%emt 0:01:48]} 7. Qd2 {[%emt 0:01:00]} a6 {[%emt 0:00:49]} 8. O-O-O {[%emt 0:00:23]} Bd7 {[%emt 0:00:02]} 9. h4 {[%emt 0:01:00]} h6 {[%emt 0:08:59]} 10. Be3 {[%emt 0:09:23]} Rc8 {[%emt 0:12:36]} 11. Nxc6 {[%emt 0:06:36]} Bxc6 {[%emt 0:00:12]} 12. f3 {[%emt 0:01:43]} Qc7 {[%emt 0:09:26]} 13. Kb1 {[%emt 0:21:39]} b5 {[%emt 0:07:47]} 14. a3 {[%emt 0:05:58]} Be7 {[%emt 0:13:13]} 15. g4 {[%emt 0:09:29]} d5 {[%emt 0:05:02]} 16. exd5 {[%emt 0:06:20]} Nxd5 {[%emt 0:00:12]} 17. Nxd5 {[%emt 0:00:17]} Bxd5 {[%emt 0:00:02]} 18. Rh3 {[%emt 0:07:05]} Qb7 {[%emt 0:07:12]} 19. Bd4 {[%emt 0:09:20]} Bxf3 {[%emt 0:07:02]} 20. Rxf3 {[%emt 0:01:23]} Qxf3 {[%emt 0:00:02]} 21. Bg2 {[%emt 0:00:24]} Qxg4 {[%emt 0:07:50]} 22. Bxg7 {[%emt 0:00:28]} f6 {[%emt 0:00:48]} 23. Qd7+ {[%emt 0:06:49]} Kf7 {[%emt 0:00:03]} 24. Bxf6 {[%emt 0:00:09]} Rc7 {[%emt 0:01:44]} 25. Qd4 {[%emt 0:05:07]} Rg8 {[%emt 0:03:46]} 26. Qxg4 {[%emt 0:02:07]} Rxg4 {[%emt 0:00:01]} 27. Bf3 {[%emt 0:00:01]} Rf4 {[%emt 0:04:05]} 28. Be5 {[%emt 0:00:18]} Rxf3 {[%emt 0:00:02]} 29. Bxc7 {[%emt 0:00:06]} Bxh4 {[%emt 0:00:11]} 30. Rd7+ {[%emt 0:00:10]} Ke8 {[%emt 0:01:27]} 31. Rh7 {[%emt 0:03:05]} Bg5 {[%emt 0:02:25]} 32. Be5 {[%emt 0:00:32]} Rf5 {[%emt 0:04:39]} 33. Bc3 {[%emt 0:01:02]} e5 {[%emt 0:00:39]} 34. Ra7 {[%emt 0:00:21]} h5 {[%emt 0:01:08]} 35. Rxa6 {[%emt 0:00:06]} Kf7 {[%emt 0:00:04]} 36. a4 {[%emt 0:01:15]} bxa4 {[%emt 0:00:53]} 37. Rxa4 {[%emt 0:00:07]} h4 {[%emt 0:00:12]} 38. Re4 {[%emt 0:00:29]} Bf4 {[%emt 0:01:07]} 39. Bxe5 {[%emt 0:00:16]} Bxe5 {[%emt 0:02:09]} 40. Rxh4 {[%emt 0:00:00]} Ke6 {[%emt 0:00:00]} 41. Ka2 {[%emt 0:02:54]} Kd5 {[%emt 0:09:52]} 42. c3 {[%emt 0:00:42]} Kc5 {[%emt 0:00:42]} 43. b4+ {[%emt 0:02:01]} Kb5 {[%emt 0:04:30]} 44. Kb3 {[%emt 0:00:08]} Rf3 {[%emt 0:00:11]} 45. Rc4 {[%emt 0:00:10]} Re3 {[%emt 0:00:47]} 46. Rc5+ {[%emt 0:00:21]} Kb6 {[%emt 0:00:00]} 47. Rc4 {[%emt 0:00:02]} Re2 {[%emt 0:01:48]} 48. Rc5 {[%emt 0:00:55]} Bf6 {[%emt 0:00:31]} 49. Rc4 {[%emt 0:00:24]} Re3 {[%emt 0:00:19]} 50. Rc5 {[%emt 0:00:07]} Be7 {[%emt 0:00:15]} 51. Rc8 {[%emt 0:00:34]} Bd6 {[%emt 0:00:21]} 52. Rc4 {[%emt 0:02:26]} Re1 {[%emt 0:01:05]} 53. Rh4 {[%emt 0:00:24]} Kc6 {[%emt 0:00:54]} 54. Kc4 {[%emt 0:00:31]} Re3 {[%emt 0:01:22]} 55. Kb3 {[%emt 0:02:42]} Be5 {[%emt 0:00:30]} 56. Rc4+ {[%emt 0:00:04]} Kd5 {[%emt 0:00:48]} 57. Rc5+ {[%emt 0:00:18]} Ke4 {[%emt 0:00:03]} 58. Rc4+ {[%emt 0:02:17]} Kd3 {[%emt 0:01:24]} 59. Rc8 {[%emt 0:00:18]} Kd2 {[%emt 0:01:32]} 60. Rd8+ {[%emt 0:00:23]} Kc1 {[%emt 0:00:30]} 61. Rc8 {[%emt 0:00:14]} Rd3 {[%emt 0:02:15]} 62. Rc5 {[%emt 0:03:35]} Bf6 {[%emt 0:02:20]} 63. Rc6 {[%emt 0:00:52]} Be5 {[%emt 0:11:50]} 1/2-1/2

[Event "Srdja Dragasevic Memorial-A 2024"]
[Site "Cetinje"]
[Date "2024.06.23"]
[Round "1.10"]
[White "Tomic, Aleksandar"]
[Black "Ramaj, Ergit"]
[Result "1-0"]
[ECO "C01"]
[WhiteElo "2388"]
[BlackElo "2128"]
[Annotator "RC"]
[PlyCount "61"]
[EventDate "2024.06.23"]
[EventType "swiss"]
[EventCountry "MNE"]
[SourceTitle "playchess.com"]
[Source "ChessBase"]
[SourceQuality "1"]
[TimeControl "40/5400+30:1800+30"]

1. c4 {[%emt 0:02:26]} e6 {[%emt 0:00:46]} 2. e4 {[%emt 0:00:42]} d5 {[%emt 0:01:15]} 3. exd5 {[%emt 0:00:19]} exd5 {[%emt 0:00:15]} 4. d4 {[%emt 0:00:01]} Nf6 {[%emt 0:00:40]} 5. Nc3 {[%emt 0:00:38]} Be7 {[%emt 0:02:03]} 6. Nf3 {[%emt 0:04:53]} O-O {[%emt 0:03:14]} 7. Be2 {[%emt 0:01:29]} c6 {[%emt 0:02:06]} 8. h3 {[%emt 0:00:54]} dxc4 {[%emt 0:00:31]} 9. Bxc4 {[%emt 0:00:43]} Nbd7 {[%emt 0:00:43]} 10. O-O {[%emt 0:01:14]} Nb6 {[%emt 0:00:40]} 11. Bb3 {[%emt 0:00:23]} Nbd5 {[%emt 0:04:02]} 12. Re1 {[%emt 0:01:07]} Be6 {[%emt 0:10:39]} 13. Bg5 {[%emt 0:05:40]} h6 {[%emt 0:05:29]} 14. Bd2 {[%emt 0:02:31]} c5 {[%emt 0:08:58]} 15. dxc5 {[%emt 0:16:22]} Bxc5 {[%emt 0:02:39]} 16. Na4 {[%emt 0:00:18]} Be7 {[%emt 0:07:49]} 17. Nd4 {[%emt 0:09:43]} Bd7 {[%emt 0:01:16]} 18. Qf3 {[%emt 0:01:22]} Bxa4 {[%emt 0:02:47]} 19. Bxa4 {[%emt 0:00:15]} Nb6 {[%emt 0:02:38]} 20. Nf5 {[%emt 0:01:08]} Qxd2 {[%emt 0:04:27]} 21. Re2 {[%emt 0:03:10]} Qb4 {[%emt 0:04:50]} 22. Nxe7+ {[%emt 0:01:33]} Kh8 {[%emt 0:00:01]} 23. Bb3 {[%emt 0:01:10]} Nc4 {[%emt 0:03:37]} 24. Qf4 {[%emt 0:06:29]} b5 {[%emt 0:00:23]} 25. Nf5 {[%emt 0:01:36]} Qc5 {[%emt 0:16:29]} 26. Nxh6 {[%emt 0:04:06]} Nh5 {[%emt 0:00:58]} 27. Nxf7+ {[%emt 0:03:08]} Kg8 {[%emt 0:05:42]} 28. Qg5 {[%emt 0:00:25]} Qxg5 {[%emt 0:00:51]} 29. Nxg5 {[%emt 0:00:08]} Nf4 {[%emt 0:00:28]} 30. Re4 {[%emt 0:03:49]} Nd3 {[%emt 0:01:36]} 31. Rxc4 {[%emt 0:01:05]} 1-0

[Event "Srdja Dragasevic Memorial-A 2024"]
[Site "Cetinje"]
[Date "2024.06.23"]
[Round "1.11"]
[White "Abdulkarimli, Eljan"]
[Black "Kosic, Dragan"]
[Result "1-0"]
[ECO "C02"]
[WhiteElo "2124"]
[BlackElo "2382"]
[Annotator "RC"]
[PlyCount "37"]
[EventDate "2024.06.23"]
[EventType "swiss"]
[EventCountry "MNE"]
[SourceTitle "playchess.com"]
[Source "ChessBase"]
[SourceQuality "1"]
[TimeControl "40/5400+30:1800+30"]

1. e4 {[%emt 1:31:00]} e6 {[%emt 0:00:13]} 2. d4 {[%emt 0:00:00]} d5 {[%emt 0:00:07]} 3. e5 {[%emt 0:00:00]} Bd7 {[%emt 0:00:38]} 4. Nf3 {[%emt 0:00:00]} a6 {[%emt 0:02:35]} 5. c4 {[%emt 0:00:00]} dxc4 {[%emt 0:01:44]} 6. Bxc4 {[%emt 0:00:00]} Bc6 {[%emt 0:00:25]} 7. Nc3 {[%emt 0:00:00]} h6 {[%emt 0:01:04]} 8. d5 {[%emt 0:00:00]} exd5 {[%emt 0:01:28]} 9. Nxd5 {[%emt 0:00:00]} Bc5 {[%emt 0:05:40]} 10. e6 {[%emt 0:00:00]} fxe6 {[%emt 0:13:05]} 11. Ne5 {[%emt 0:00:00]} Bxd5 {[%emt 0:00:42]} 12. Qh5+ {[%emt 0:00:00]} Ke7 {[%emt 0:03:13]} 13. Qf7+ {[%emt 0:00:00]} Kd6 {[%emt 0:00:08]} 14. Bf4 {[%emt 0:00:00]} Bb4+ {[%emt 0:15:52]} 15. Ke2 {[%emt 0:00:00]} g5 {[%emt 0:21:32]} 16. Bxd5 {[%emt 0:00:00]} exd5 {[%emt 0:05:55]} 17. Nc6+ {[%emt 0:01:21]} Kxc6 {[%emt 0:00:31]} 18. Rhc1+ {[%emt 0:00:06]} Bc5 {[%emt 0:04:32]} 19. Qe6+ {[%emt 0:01:06]} 1-0

[Event "Srdja Dragasevic Memorial-A 2024"]
[Site "Cetinje"]
[Date "2024.06.23"]
[Round "1.12"]
[White "Ivanovic, Bozidar"]
[Black "Pusara, Mihailo"]
[Result "0-1"]
[ECO "B48"]
[WhiteElo "2371"]
[BlackElo "2117"]
[Annotator "RC"]
[PlyCount "148"]
[EventDate "2024.06.23"]
[EventType "swiss"]
[EventCountry "MNE"]
[SourceTitle "playchess.com"]
[Source "ChessBase"]
[SourceQuality "1"]
[TimeControl "40/5400+30:1800+30"]

1. e4 {[%emt 0:00:05]} c5 {[%emt 0:00:09]} 2. Nf3 {[%emt 0:00:17]} d6 {[%emt 0:00:08]} 3. d4 {[%emt 0:00:17]} cxd4 {[%emt 0:00:06]} 4. Nxd4 {[%emt 0:00:09]} Nf6 {[%emt 1:32:07]} 5. Nc3 {[%emt 0:00:13]} Nc6 {[%emt 0:00:00]} 6. Bc4 {[%emt 0:00:27]} Qb6 {[%emt 0:00:00]} 7. Nb3 {[%emt 0:00:24]} e6 {[%emt 0:00:00]} 8. O-O {[%emt 0:01:24]} Be7 {[%emt 0:00:00]} 9. Be3 {[%emt 0:00:31]} Qc7 {[%emt 0:00:00]} 10. f4 {[%emt 0:02:20]} O-O {[%emt 0:00:00]} 11. Bd3 {[%emt 0:05:03]} a6 {[%emt 0:00:00]} 12. Kh1 {[%emt 0:00:30]} b5 {[%emt 0:00:00]} 13. a3 {[%emt 0:00:30]} Bb7 {[%emt 0:00:00]} 14. Qf3 {[%emt 0:00:30]} Rac8 {[%emt 0:00:00]} 15. Qh3 {[%emt 0:03:05]} g6 {[%emt 0:00:00]} 16. f5 {[%emt 0:22:10]} exf5 {[%emt 0:00:00]} 17. Bh6 {[%emt 0:04:13]} Rfe8 {[%emt 0:00:00]} 18. exf5 {[%emt 0:04:01]} Qd7 {[%emt 0:00:00]} 19. Nd5 {[%emt 0:02:49]} Bd8 {[%emt 0:00:00]} 20. Bg5 {[%emt 0:04:04]} Nxd5 {[%emt 0:00:00]} 21. fxg6 {[%emt 0:03:38]} Qxh3 {[%emt 0:00:00]} 22. gxf7+ {[%emt 0:00:12]} Kf8 {[%emt 0:00:00]} 23. fxe8=Q+ {[%emt 0:45:08]} Kxe8 {[%emt 0:00:00]} 24. gxh3 {[%emt 0:00:00]} Bxg5 {[%emt 0:00:00]} 25. Rae1+ {[%emt 0:00:00]} Ne5 {[%emt 0:00:00]} 26. Na5 {[%emt 0:00:00]} Ba8 {[%emt 0:00:00]} 27. Be4 {[%emt 0:00:00]} Bd2 {[%emt 0:00:00]} 28. Rd1 {[%emt 0:00:00]} Ne3 {[%emt 0:00:00]} 29. Bxa8 {[%emt 0:00:00]} Bxa5 {[%emt 0:00:00]} 30. Bb7 {[%emt 0:00:00]} Rxc2 {[%emt 0:00:00]} 31. Rc1 {[%emt 0:00:00]} Rxb2 {[%emt 0:00:00]} 32. Rb1 {[%emt 0:00:00]} Rxb1 {[%emt 0:00:03]} 33. Rxb1 {[%emt 0:00:00]} N3c4 {[%emt 0:01:09]} 34. Bxa6 {[%emt 0:00:00]} Nxa3 {[%emt 0:00:29]} 35. Bxb5+ {[%emt 0:00:00]} Nxb5 {[%emt 0:00:05]} 36. Rxb5 {[%emt 0:00:00]} Bd2 {[%emt 0:02:37]} 37. Rb7 {[%emt 0:00:00]} Nd7 {[%emt 0:00:16]} 38. Kg2 {[%emt 0:00:00]} Ke7 {[%emt 0:00:28]} 39. Kf3 {[%emt 0:00:00]} d5 {[%emt 0:00:31]} 40. Ra7 {[%emt 0:00:00]} Ke6 {[%emt 0:00:00]} 41. Ra6+ {[%emt 0:00:00]} Ke5 {[%emt 0:02:23]} 42. Ra7 {[%emt 0:00:00]} Nf6 {[%emt 0:00:21]} 43. Re7+ {[%emt 0:00:00]} Kf5 {[%emt 0:00:08]} 44. Ke2 {[%emt 0:00:00]} Bf4 {[%emt 0:00:12]} 45. Kd3 {[%emt 0:00:00]} Bxh2 {[%emt 0:01:02]} 46. Kd4 {[%emt 0:00:00]} Bg1+ {[%emt 0:00:07]} 47. Kd3 {[%emt 0:00:00]} h6 {[%emt 0:00:35]} 48. Re1 {[%emt 0:00:00]} Bf2 {[%emt 0:03:28]} 49. Re7 {[%emt 0:00:00]} d4 {[%emt 0:01:06]} 50. Ra7 {[%emt 0:00:00]} Be3 {[%emt 0:01:06]} 51. Ra6 {[%emt 0:00:00]} Nd7 {[%emt 0:00:48]} 52. Ke2 {[%emt 0:01:17]} Ne5 {[%emt 0:00:31]} 53. Ra8 {[%emt 0:03:16]} Ke4 {[%emt 0:00:14]} 54. Re8 {[%emt 0:00:07]} d3+ {[%emt 0:01:14]} 55. Kd1 {[%emt 0:00:54]} Kd4 {[%emt 0:00:26]} 56. Rd8+ {[%emt 0:05:25]} Ke4 {[%emt 0:00:09]} 57. Re8 {[%emt 0:00:07]} Bf4 {[%emt 0:00:11]} 58. h4 {[%emt 0:03:27]} Kf3 {[%emt 0:00:14]} 59. Rd8 {[%emt 0:02:20]} Kg4 {[%emt 0:00:24]} 60. Rd4 {[%emt 0:01:10]} Kf3 {[%emt 0:01:02]} 61. Rd8 {[%emt 0:00:13]} Kg3 {[%emt 0:04:07]} 62. h5 {[%emt 0:01:08]} d2 {[%emt 0:01:37]} 63. Ke2 {[%emt 0:03:48]} Ng4 {[%emt 0:01:47]} 64. Rg8 {[%emt 0:06:21]} Bg5 {[%emt 0:00:24]} 65. Rf8 {[%emt 0:00:17]} Kh4 {[%emt 0:00:14]} 66. Rf1 {[%emt 0:00:15]} Kxh5 {[%emt 0:00:29]} 67. Ra1 {[%emt 0:03:17]} Kg6 {[%emt 0:00:14]} 68. Ra4 {[%emt 0:02:21]} h5 {[%emt 0:00:29]} 69. Rd4 {[%emt 0:01:07]} Ne5 {[%emt 0:00:38]} 70. Ra4 {[%emt 0:01:42]} Kf5 {[%emt 0:00:14]} 71. Ra1 {[%emt 0:03:34]} h4 {[%emt 0:00:49]} 72. Rh1 {[%emt 0:00:55]} Nc4 {[%emt 0:00:36]} 73. Rb1 {[%emt 0:01:50]} h3 {[%emt 0:00:35]} 74. Rb5+ {[%emt 0:01:32]} Kg4 {[%emt 0:01:15]} 0-1